fUSD/lending_fUSD_20240223
["ID","MTS","AMOUNT","RATE_DAILY","PERIOD"]
[314930789,1708683040283,-202.0,0.00027397,7]
[314930790,1708683040292,-198.0,0.00027397,7]
[314930791,1708683040302,-3012.38,0.00027397,2]
[314930792,1708683040311,-375.0,0.000274,2]
[314930793,1708683040320,-224.01,0.00027433,2]
[314930794,1708683040330,-3012.38,0.00027556,2]
[314930795,1708683040341,-348.37,0.0002756,2]
[314930796,1708683040350,-150.0,0.00027644,7]
[314930797,1708683040359,-150.0,0.00027644,7]
[314930798,1708683040369,-3012.38,0.00027714,2]
[314930799,1708683040377,-11240.31698209,0.00027772,2]
[314930800,1708683040387,-3012.38,0.00027872,2]
[314930801,1708683040396,-1082.44913039,0.00027899,2]
[314930802,1708683040405,-2681.0,0.000279,2]
[314930803,1708683040414,-153.0514485,0.000279,2]
[314930804,1708683040423,-896.55037223,0.000279,3]
[314930805,1708683040432,-151.022188,0.00027918,2]
[314930806,1708683040441,-151.022188,0.00027918,2]
[314930807,1708683040450,-151.022188,0.00027918,2]
[314930808,1708683040460,-151.022188,0.00027918,2]
[314930809,1708683040469,-151.022188,0.00027918,2]
[314930810,1708683040478,-151.022188,0.00027918,2]
[314930811,1708683040487,-151.022188,0.00027918,2]
[314930812,1708683040495,-151.022188,0.00027918,2]
[314930813,1708683040504,-151.022188,0.00027918,2]
[314930814,1708683040514,-151.022188,0.00027918,2]
[314930815,1708683040522,-100000.0,0.00027932,2]
[314930816,1708683040532,-398764.61047586,0.00028,2]
[314930817,1708683040547,-614.0249202,0.00028,2]
[314930838,1708683042773,-81739.40942455,0.00028,2]
[314930839,1708683042782,-29010.0,0.00028,2]
[314930840,1708683042791,-3012.38,0.0002803,2]
[314930841,1708683042800,-3012.38,0.00028189,2]
[314930842,1708683042809,-500.0,0.00028199,2]
[314930843,1708683042819,-2000.0,0.000282,2]
[314930845,1708683042828,-3012.38,0.00028347,2]
[314930847,1708683042838,-11240.31698207,0.00028453,2]
[314930849,1708683042847,-500.0,0.00028473,2]
[314930851,1708683042857,-3012.38,0.00028505,2]
[314930853,1708683042865,-548.2566071,0.0002852,2]
[314930855,1708683042874,-896.55037222,0.00028597,4]
[314930856,1708683042882,-462.42,0.0002862,2]
[314930857,1708683042891,-3012.38,0.00028664,2]
[314930858,1708683042900,-159.02,0.00028713,2]
[314930860,1708683042909,-157.0,0.00028715,2]
[314930862,1708683042921,-500.0,0.00028747,2]
[314930864,1708683042930,-1000.0,0.00028764,7]
[314930866,1708683042939,-500.0,0.00028764,7]
[314930867,1708683042948,-200.56949949,0.00028764,7]
[314930868,1708683042958,-165.96769202,0.00028764,7]
[314930869,1708683042967,-269.02660726,0.00028764,7]
[314930870,1708683042976,-209.53787975,0.00028764,7]
[314930871,1708683042985,-3012.38,0.00028822,2]
[314930872,1708683042995,-200.0,0.00028888,2]
[314930873,1708683043004,-1709.44,0.0002893,2]
[314930874,1708683043014,-21530.50325425,0.00029,2]
[314930875,1708683043022,-1519.26,0.00029,3]
[314930876,1708683043031,-1500.0,0.00029,2]
[314930877,1708683043041,-500.0,0.00029021,2]
[314930878,1708683043049,-11240.31698207,0.00029134,2]
[314930879,1708683043058,-153.0514485,0.00029158,2]
[314930880,1708683043067,-193.03873203,0.00029187,2]
[314930881,1708683043076,-2693.0,0.0002924,2]
[314930882,1708683043085,-1876.406,0.0002924,2]
[314930883,1708683043096,-536.257,0.0002924,2]
[314930884,1708683043105,-746.383,0.0002924,2]
[314930885,1708683043114,-457.434,0.0002924,2]
[314930886,1708683043123,-954.0,0.0002924,2]
[314930887,1708683043131,-458.0,0.0002924,2]
[314930888,1708683043141,-1951.0,0.0002924,2]
[314930889,1708683043150,-1231.0,0.0002924,2]
[314930890,1708683043159,-285.342,0.0002924,2]
[314930891,1708683043169,-1256.0,0.0002924,2]
[314930892,1708683043177,-600.0,0.0002924,2]
[314930893,1708683043187,-1020.795,0.0002924,2]
[314930894,1708683043196,-316.516,0.0002924,2]
[314930895,1708683043204,-430.0,0.0002924,2]
[314930896,1708683043213,-862.676,0.0002924,2]
[314930897,1708683043223,-2889.0,0.0002924,2]
[314930898,1708683043232,-332.643,0.0002924,2]
[314930899,1708683043241,-337.0,0.0002924,2]
[314930900,1708683043251,-1138.0,0.0002924,2]
[314930901,1708683043260,-256.685,0.0002924,2]
[314930902,1708683043269,-454.0,0.0002924,2]
[314930903,1708683043278,-389.0,0.0002924,2]
[314930904,1708683043288,-165.019,0.0002924,2]
[314930905,1708683043297,-2508.963,0.0002924,2]
[314930906,1708683043306,-2302.775,0.0002924,2]
[314930907,1708683043315,-5231.257,0.0002924,2]
[314930908,1708683043324,-8177.0,0.0002924,2]
[314930909,1708683043333,-19879.0,0.0002924,2]
[314930910,1708683043343,-2463.688,0.0002924,2]
[314930911,1708683043352,-2948.63,0.0002924,2]
[314930912,1708683043361,-1039.0,0.0002924,2]
[314930913,1708683043370,-2019.2620724,0.00029256,2]
[314930914,1708683043379,-39170.05677543,0.00029257,4]
[314930915,1708683043460,-0.00586341,0.00029257,4]
[314930919,1708683046886,-615.56277098,0.00027999,2]
[314930920,1708683046896,-326.43984577,0.00029257,4]
[314930921,1708683046907,-432.27653367,0.00029257,4]
[314930922,1708683046920,-35845.67503835,0.00029257,4]
[314930936,1708683879701,312.5,0.00027,7]
[314930939,1708684084659,210.0,0.00022744,2]
[314930940,1708684084985,210.0,0.00026131,7]
[314930958,1708684231683,-267.7144929,0.00025298,2]
[314930960,1708684231695,-333.0,0.00025397,2]
[314930961,1708684231704,-560.01,0.00025398,2]
[314930962,1708684231714,-150.0,0.00025965,2]
[314930963,1708684231723,-177.74,0.00026424,2]
[314930964,1708684231733,-150.0,0.00026513,2]
[314930965,1708684231742,-381.19,0.00026717,2]
[314930966,1708684231751,-500.0,0.00026721,2]
[314930967,1708684231760,-332.19,0.00026805,2]
[314930968,1708684231770,-150.0,0.00026898,2]
[314930969,1708684231780,-150.0,0.00026898,2]
[314930970,1708684231790,-300.0,0.00026898,2]
[314930971,1708684231799,-172.7554052,0.00026899,2]
[314930972,1708684231811,-5142.28797904,0.00026899,2]
[314930973,1708684231834,-3053.03600406,0.00026899,2]
[314930974,1708684231857,-15521.9206117,0.00026899,2]
[314930975,1708684231866,-327.77,0.000269,2]
[314930976,1708684231879,-150.0,0.00026964,2]
[314930977,1708684231889,-2000.0,0.00026965,2]
[314930978,1708684231898,-14536.87,0.00026965,2]
[314930979,1708684231908,-177.74,0.00026972,2]
[314930980,1708684231917,-150.1,0.00027,3]
[314930981,1708684231927,-1499.52,0.00027058,2]
[314930982,1708684231936,-1119.03,0.00027058,2]
[314930983,1708684231946,-2764.85,0.00027058,2]
[314930984,1708684231955,-159.35,0.00027134,2]
[314930985,1708684231965,-250.0,0.00027176,2]
[314930986,1708684231974,-250.0,0.00027181,2]
[314930987,1708684231984,-521.31,0.00027186,2]
[314930988,1708684231994,-268.24,0.000272,2]
[314930989,1708684232003,-7007.78,0.00027397,2]
[314930990,1708684232012,-2000.0,0.000274,2]
[314930991,1708684232022,-375.0,0.000274,2]
[314930992,1708684232031,-1006.51246706,0.00027405,2]
[314930993,1708684232041,-159.35,0.00027417,2]
[314930994,1708684232051,-550.6,0.00027424,2]
[314930995,1708684232062,-200.90337149,0.0002752,2]
[314930997,1708684232071,-3456.64757419,0.00027546,2]
[314930998,1708684232081,-7007.78,0.00027556,2]
[314930999,1708684232090,-478.69,0.00027658,2]
[314931000,1708684232100,-560.01,0.00027661,2]
[314931001,1708684232109,-156.11905302,0.00027696,2]
[314931002,1708684232118,-159.35,0.000277,2]
[314931003,1708684232130,-7007.78,0.00027714,2]
[314931004,1708684232139,-170.36,0.00027796,2]
[314931005,1708684232149,-1234.39,0.00027796,2]
[314931006,1708684232159,-1000.0,0.00027799,2]
[314931007,1708684232168,-15720.8055,0.000278,2]
[314931008,1708684232178,-773.73,0.000278,2]
[314931009,1708684232187,-1280.9,0.000278,2]
[314931010,1708684232197,-682.53497964,0.000278,2]
[314931011,1708684232206,-156.11905302,0.00027839,2]
[314931012,1708684232216,-7007.78,0.00027872,2]
[314931013,1708684232226,-14861.0,0.000279,2]
[314931014,1708684232235,-159.35,0.00027983,2]
[314931015,1708684232244,-156.11905302,0.00027983,2]
[314931016,1708684232254,-200.72014344,0.00028,2]
[314931017,1708684232263,-7007.78,0.0002803,2]
[314931018,1708684232277,-156.11905302,0.00028126,2]
[314931019,1708684232286,-7007.78,0.00028189,2]
[314931020,1708684232296,-150.0,0.00028255,2]
[314931021,1708684232305,-150.0,0.00028255,2]
[314931022,1708684232315,-166.13,0.00028263,2]
[314931023,1708684232324,-159.35,0.00028265,2]
[314931024,1708684232333,-156.11905302,0.0002827,2]
[314931025,1708684232342,-682.53497963,0.0002834,2]
[314931026,1708684232352,-7007.78,0.00028347,2]
[314931027,1708684232362,-166.25,0.00028409,2]
[314931028,1708684232373,-156.11905302,0.00028413,2]
[314931029,1708684232382,-52948.36428194,0.00028448,2]
[314931030,1708684232391,-2000.0,0.000285,2]
[314931031,1708684232400,-7007.78,0.00028505,2]
[314931032,1708684232409,-159.35,0.00028548,2]
[314931033,1708684232419,-156.11905302,0.00028556,2]
[314931034,1708684232428,-166.25,0.00028558,2]
[314931035,1708684232437,-268.24,0.0002856,2]
[314931036,1708684232446,-150.0,0.0002866,2]
[314931037,1708684232456,-155.0,0.0002866,2]
[314931038,1708684232465,-7007.78,0.00028664,2]
[314931039,1708684232474,-156.11905302,0.000287,2]
[314931040,1708684232483,-1499.52,0.00028702,2]
[314931041,1708684232493,-166.25,0.00028708,2]
[314931042,1708684232502,-155.29380375,0.00028711,2]
[314931043,1708684232511,-231.15853628,0.00028764,7]
[314931044,1708684232521,-221.9003561,0.00028764,7]
[314931045,1708684232530,-260.47326067,0.00028764,7]
[314931046,1708684232539,-260.21190294,0.00028764,7]
[314931047,1708684232548,-196.38620606,0.00028764,7]
[314931048,1708684232558,-244.56964297,0.00028764,7]
[314931049,1708684232566,-200.0,0.00028812,2]
[314931050,1708684232576,-7007.78,0.00028822,2]
[314931051,1708684232585,-156.11905302,0.00028843,2]
[314931052,1708684232594,-166.25,0.00028857,2]
[314931053,1708684232603,-721.14705264,0.0002888,4]
[314931054,1708684232612,-682.53497963,0.0002888,2]
[314931055,1708684232622,-156.09014082,0.00028887,2]
[314931056,1708684232631,-548.2566071,0.00028887,2]
[314931057,1708684232640,-2505.8224,0.000289,2]
[314931058,1708684232650,-156.09014078,0.00028954,2]
[314931059,1708684232660,-1800.37739964,0.00028956,2]
[314931060,1708684232669,-1131.02099084,0.00028956,2]
[314931061,1708684232678,-1123.50821363,0.00028956,2]
[314931062,1708684232688,-8038.55292787,0.00028956,2]
[314931063,1708684232697,-150.59551891,0.00028956,2]
[314931064,1708684232706,-1051.74122146,0.00028956,2]
[314931065,1708684232715,-244534.54913621,0.00028964,2]
[314931066,1708684232728,-986.46397527,0.00028964,2]
[314931067,1708684232739,-333.00815705,0.00028964,2]
[314931068,1708684232750,-1024.138656,0.00028964,2]
[314931069,1708684232761,-727.712567,0.00028964,2]
[314931070,1708684232777,-993.79654298,0.00028964,2]
[314931071,1708684232788,-1259.03570238,0.00028964,2]
[314931072,1708684232803,-307.70055444,0.00028964,2]
[314931073,1708684232815,-2810.5370292,0.00028964,2]
[314931074,1708684232826,-467.35828416,0.00028964,2]
[314931075,1708684232850,-1378.75912884,0.00028964,2]
[314931076,1708684232861,-256.26419704,0.00028964,2]
[314931078,1708684239352,-750.0,0.00025,3]
[314931079,1708684239363,-800.0,0.00027,3]
[314931080,1708684239373,-1588.03,0.00028964,2]
[314931081,1708684239465,-1231.25904792,0.00028964,2]
[314931082,1708684239476,-963.36128259,0.00028964,2]
[314931083,1708684239524,-3027.70116514,0.00028964,2]
[314931086,1708684239658,-328.63431977,0.00028964,2]
[314931087,1708684239753,-992.67335475,0.00028964,2]
[314931088,1708684239780,-2527.83225951,0.00028964,2]
[314931089,1708684239805,-1195.00064235,0.00028964,2]
[314931090,1708684239817,-3017.4999855,0.00028964,2]
[314931091,1708684239827,-304.18710526,0.00028964,2]
[314931093,1708684240305,-38396.91322113,0.00028964,2]
[314931094,1708684240963,-7375.46097885,0.00028964,2]
[314931095,1708684241175,-505.19409154,0.00028964,2]
[314931107,1708684243769,-500.0,0.00028964,2]
[314931108,1708684243785,-4610.61476524,0.00028964,2]
[314931109,1708684243864,-455.79565744,0.00028964,2]
[314931111,1708684243875,-2281.57991184,0.00028964,2]
[314931112,1708684243888,-8314.85251101,0.00028964,2]
[314931113,1708684243897,-11276.195678,0.00028978,2]
[314931114,1708684243906,-7692.99724181,0.0002898,4]
[314931117,1708684245694,-362.84292556,0.00028887,2]
[314931118,1708684245705,-1095.53402601,0.00028887,2]
[314931119,1708684245717,-8517.87849248,0.00028887,2]
[314931120,1708684245728,-904.64662748,0.00028887,2]
[314931121,1708684245857,-1866.60714684,0.00028887,2]
[314931122,1708684245908,-191.39377091,0.00028887,2]
[314931123,1708684245917,-2826.38567684,0.0002898,4]
[314931124,1708684245967,-276.90558802,0.0002898,4]
[314931125,1708684245979,-531.0763431,0.0002898,4]
[314931126,1708684245991,-509.2532,0.0002898,4]
[314931127,1708684246080,-2501.52130904,0.0002898,4]
[314931128,1708684324574,213.0,0.00022744,2]
[314931129,1708684415486,170.75,0.00022287,2]
[314931130,1708684608902,8000.0,0.000225,2]
[314931132,1708684730639,185.41753753,0.00022387,2]
[314931133,1708684900698,282.2,0.00026498,10]
[314931134,1708685103284,153.61908965,0.00029,120]
[314931135,1708685151924,529.45868368,0.00026272,30]
[314931143,1708685426766,529.45868368,0.0002623,30]
[314931154,1708685431927,-2155.48364747,0.00024243,2]
[314931155,1708685431937,-614.68,0.00024244,2]
[314931156,1708685431946,-199.72356774,0.00025336,2]
[314931157,1708685431954,-150.0,0.00025436,2]
[314931158,1708685431963,-177.74,0.00025956,2]
[314931159,1708685431972,-150.0,0.00025984,2]
[314931160,1708685431981,-150.0,0.00026137,2]
[314931161,1708685431990,-1852.42,0.00026149,2]
[314931162,1708685432000,-200.0,0.00026154,2]
[314931163,1708685432009,-250.0,0.00026154,2]
[314931164,1708685432018,-2000.0,0.00026169,2]
[314931165,1708685432027,-199.72356774,0.00026173,2]
[314931166,1708685432036,-582.95,0.00026231,2]
[314931167,1708685432046,-250.0,0.00026247,2]
[314931168,1708685432055,-273.14,0.00026247,2]
[314931169,1708685432063,-500.0,0.00026247,2]
[314931170,1708685432073,-1751.08,0.00026258,2]
[314931171,1708685432082,-150.0,0.00026272,2]
[314931172,1708685432091,-1764.54,0.00026273,2]
[314931173,1708685432100,-23890.0,0.00026273,2]
[314931174,1708685432109,-573.78,0.00026273,2]
[314931175,1708685432119,-150.99,0.00026273,2]
[314931176,1708685432129,-734.55,0.00026273,2]
[314931177,1708685432138,-500.0,0.0002629,2]
[314931178,1708685432148,-150.0,0.00026307,2]
[314931179,1708685432158,-500.0,0.00026377,2]
[314931180,1708685432167,-200.0,0.00026433,2]
[314931181,1708685432176,-988.04,0.00026436,2]
[314931182,1708685432184,-200.0,0.00026444,2]
[314931184,1708685432284,-177.74,0.00026504,2]
[314931185,1708685432294,-614.68,0.00026508,2]
[314931187,1708685432304,-210.0,0.00026518,2]
[314931189,1708685432313,-157.23,0.00026561,2]
[314931190,1708685432322,-737.91888808,0.000266,2]
[314931191,1708685432331,-737.91888808,0.000266,2]
[314931192,1708685432340,-737.91888808,0.000266,2]
[314931193,1708685432350,-737.91888808,0.000266,2]
[314931194,1708685432359,-737.91888808,0.000266,2]
[314931195,1708685432368,-417.05,0.00026684,2]
[314931196,1708685432377,-157.23,0.00026687,2]
[314931197,1708685432387,-157.23,0.00026813,2]
[314931198,1708685432397,-863.75,0.00026862,2]
[314931199,1708685432407,-802.05,0.00026891,2]
[314931200,1708685432416,-192.63,0.000269,2]
[314931201,1708685432425,-499.99,0.00026928,2]
[314931202,1708685432435,-157.23,0.00026938,2]
[314931203,1708685432444,-4848.08854827,0.0002699,2]
[314931204,1708685432453,-11877.93667365,0.00027,2]
[314931205,1708685432463,-2075.0,0.00027038,2]
[314931206,1708685432472,-354.64,0.00027052,2]
[314931207,1708685432482,-157.23,0.00027064,2]
[314931208,1708685432491,-162.4,0.0002709,2]
[314931209,1708685432501,-3075.921,0.0002709,2]
[314931210,1708685432511,-157.23,0.0002719,2]
[314931211,1708685432520,-157.23,0.00027316,2]
[314931212,1708685432529,-1370.60943974,0.00027343,2]
[314931213,1708685432538,-155.0,0.00027397,2]
[314931214,1708685432548,-2193.36,0.00027397,2]
[314931215,1708685432557,-157.23,0.00027442,2]
[314931216,1708685432567,-2193.36,0.00027556,2]
[314931217,1708685432576,-157.23,0.00027568,2]
[314931218,1708685432585,-150.0,0.00027571,2]
[314931219,1708685432594,-162.4,0.00027632,2]
[314931220,1708685432604,-157.0,0.00027693,2]
[314931221,1708685432613,-157.23,0.00027693,2]
[314931222,1708685432623,-2193.36,0.00027714,2]
[314931223,1708685432637,-166.29,0.0002776,2]
[314931224,1708685432646,-157.23,0.00027819,2]
[314931225,1708685432655,-200.0,0.00027863,2]
[314931226,1708685432664,-2193.36,0.00027872,2]
[314931227,1708685432673,-2000.0,0.000279,2]
[314931228,1708685432687,-1751.08,0.00027902,2]
[314931229,1708685432696,-157.23,0.00027945,2]
[314931230,1708685432705,-11645.01269028,0.00027946,2]
[314931231,1708685432714,-48480.43561971,0.00027946,2]
[314931232,1708685432723,-1370.60943973,0.00027947,2]
[314931233,1708685432732,-1000.0,0.00027947,2]
[314931234,1708685432741,-2500.0,0.00027947,2]
[314931235,1708685432750,-988.31736957,0.00027978,2]
[314931236,1708685432759,-2787.07110974,0.00027979,2]
[314931237,1708685432768,-250.0,0.0002798,2]
[314931238,1708685432778,-3000.0,0.0002798,2]
[314931239,1708685432787,-3000.0,0.0002798,2]
[314931240,1708685432796,-3000.0,0.0002798,2]
[314931241,1708685432805,-3000.0,0.0002798,2]
[314931242,1708685432814,-3525.68337743,0.0002798,2]
[314931243,1708685432824,-181.70070823,0.0002798,2]
[314931244,1708685432834,-163.75129832,0.00027982,2]
[314931245,1708685432843,-20241.85649909,0.00028,2]
[314931246,1708685432853,-2193.36,0.0002803,2]
[314931247,1708685432862,-174.32,0.00028036,2]
[314931248,1708685432871,-500.0,0.00028045,2]
[314931249,1708685432880,-500.0,0.00028046,2]
[314931250,1708685432889,-500.0,0.00028046,2]
[314931251,1708685432898,-500.0,0.00028046,2]
[314931252,1708685432907,-509.38923241,0.00028046,2]
[314931253,1708685432917,-14164.91,0.00028046,2]
[314931254,1708685432926,-1239.74,0.00028046,2]
[314931255,1708685432935,-500.0,0.00028046,2]
[314931256,1708685432944,-509.32190197,0.00028046,2]
[314931257,1708685432953,-500.0,0.00028046,2]
[314931258,1708685432962,-505.32941646,0.00028046,2]
[314931259,1708685432971,-500.0,0.00028046,2]
[314931260,1708685432980,-505.03564648,0.00028046,2]
[314931261,1708685432989,-894.87,0.00028046,2]
[314931262,1708685432998,-500.0,0.00028046,2]
[314931263,1708685433007,-696.64,0.00028046,2]
[314931264,1708685433017,-500.0,0.00028046,2]
[314931265,1708685433026,-500.0,0.00028046,2]
[314931266,1708685433035,-500.0,0.00028046,2]
[314931267,1708685433044,-759.78,0.00028046,2]
[314931268,1708685433053,-500.0,0.00028046,2]
[314931269,1708685433062,-505.2164966,0.00028046,2]
[314931270,1708685433071,-500.0,0.00028046,2]
[314931271,1708685433080,-500.0,0.00028046,2]
[314931272,1708685433089,-500.0,0.00028046,2]
[314931273,1708685433098,-3781.0,0.00028046,2]
[314931274,1708685433106,-500.0,0.00028046,2]
[314931275,1708685433115,-174.89204717,0.00028046,2]
[314931276,1708685433124,-697.78,0.00028046,2]
[314931277,1708685433134,-430.84521422,0.00028046,2]
[314931278,1708685433143,-514.52,0.00028046,2]
[314931279,1708685433153,-541.27715106,0.00028046,2]
[314931280,1708685433162,-500.0,0.00028046,2]
[314931281,1708685433172,-500.0,0.00028046,2]
[314931282,1708685433181,-517.28687834,0.00028046,2]
[314931283,1708685433190,-500.0,0.00028046,2]
[314931284,1708685433199,-500.0,0.00028046,2]
[314931285,1708685433208,-855.71,0.00028046,2]
[314931286,1708685433218,-502.31246479,0.00028046,2]
[314931287,1708685433227,-587.33,0.00028046,2]
[314931288,1708685433236,-500.0,0.00028046,2]
[314931289,1708685433245,-500.0,0.00028046,2]
[314931290,1708685433254,-500.0,0.00028046,2]
[314931291,1708685433263,-500.0,0.00028046,2]
[314931292,1708685433273,-6451.61,0.00028046,2]
[314931293,1708685433282,-532.67431532,0.00028046,2]
[314931294,1708685433291,-500.0,0.00028046,2]
[314931295,1708685433301,-673.54,0.00028046,2]
[314931296,1708685433309,-524.07958258,0.00028046,2]
[314931297,1708685433319,-500.0,0.00028046,2]
[314931298,1708685433328,-500.0,0.00028046,2]
[314931299,1708685433337,-531.32083718,0.00028046,2]
[314931300,1708685433346,-500.0,0.00028046,2]
[314931301,1708685433355,-507.42911592,0.00028046,2]
[314931302,1708685433364,-500.0,0.00028046,2]
[314931303,1708685433373,-656.07,0.00028046,2]
[314931304,1708685433382,-500.0,0.00028046,2]
[314931305,1708685433392,-500.0,0.00028046,2]
[314931306,1708685433401,-514.70931762,0.00028046,2]
[314931307,1708685433411,-1473.24,0.00028046,2]
[314931308,1708685433420,-507.64244439,0.00028046,2]
[314931309,1708685433429,-1225.11,0.00028046,2]
[314931310,1708685433438,-3758.8,0.00028046,2]
[314931311,1708685433448,-500.0,0.00028046,2]
[314931312,1708685433457,-500.0,0.00028046,2]
[314931313,1708685433466,-500.0,0.00028046,2]
[314931314,1708685433476,-1379.98,0.00028046,2]
[314931315,1708685433485,-500.0,0.00028046,2]
[314931316,1708685433506,-4468.46,0.00028046,2]
[314931317,1708685433516,-505.94092291,0.00028046,2]
[314931318,1708685433525,-668.87,0.00028046,2]
[314931319,1708685433535,-500.0,0.00028046,2]
[314931320,1708685433544,-1000.0,0.00028046,2]
[314931321,1708685433553,-506.74082018,0.00028046,2]
[314931322,1708685433562,-200.69296565,0.00028046,2]
[314931323,1708685433571,-586.63461023,0.00028046,2]
[314931324,1708685433580,-500.0,0.00028046,2]
[314931325,1708685433589,-944.35,0.00028046,2]
[314931326,1708685433599,-500.0,0.00028046,2]
[314931327,1708685433608,-500.0,0.00028046,2]
[314931328,1708685433616,-500.0,0.00028046,2]
[314931329,1708685433630,-500.0,0.00028046,2]
[314931330,1708685433639,-524.98089827,0.00028046,2]
[314931331,1708685433648,-505.88307068,0.00028046,2]
[314931332,1708685433658,-500.0,0.00028046,2]
[314931333,1708685433667,-499.75354213,0.00028046,2]
[314931334,1708685433676,-718.82,0.00028046,2]
[314931335,1708685433685,-535.30389103,0.00028046,2]
[314931336,1708685433695,-500.0,0.00028046,2]
[314931337,1708685433706,-500.0,0.00028046,2]
[314931338,1708685433715,-1091.49,0.00028046,2]
[314931339,1708685433724,-500.0,0.00028046,2]
[314931340,1708685433733,-2557.16,0.00028046,2]
[314931341,1708685433742,-523.18734651,0.00028046,2]
[314931342,1708685433752,-500.0,0.00028046,2]
[314931343,1708685433761,-500.0,0.00028046,2]
[314931344,1708685433770,-1639.47,0.00028046,2]
[314931345,1708685433779,-500.0,0.00028046,2]
[314931346,1708685433789,-500.39537777,0.00028046,2]
[314931347,1708685433798,-1658.76,0.00028046,2]
[314931348,1708685433807,-506.68236828,0.00028046,2]
[314931349,1708685433817,-513.78934529,0.00028046,2]
[314931350,1708685433826,-158.3343082,0.00028046,2]
[314931351,1708685433835,-500.0,0.00028046,2]
[314931352,1708685433844,-500.0,0.00028046,2]
[314931353,1708685433854,-500.0,0.00028046,2]
[314931354,1708685433863,-500.0,0.00028046,2]
[314931355,1708685433872,-1414.86,0.00028046,2]
[314931356,1708685433882,-535.26879585,0.00028046,2]
[314931357,1708685433891,-500.0,0.00028046,2]
[314931358,1708685433901,-882.35,0.00028046,2]
[314931359,1708685433910,-335.47394739,0.00028046,2]
[314931360,1708685433919,-507.76309869,0.00028046,2]
[314931361,1708685433929,-8633.48,0.00028046,2]
[314931362,1708685433938,-500.0,0.00028046,2]
[314931363,1708685433947,-5949.95,0.00028046,2]
[314931364,1708685433956,-523.65097258,0.00028046,2]
[314931365,1708685433966,-500.0,0.00028046,2]
[314931366,1708685433975,-880.45,0.00028046,2]
[314931367,1708685433984,-738.54,0.00028046,2]
[314931368,1708685433993,-500.0,0.00028046,2]
[314931369,1708685434003,-510.29723048,0.00028046,2]
[314931370,1708685434013,-512.78382117,0.00028046,2]
[314931371,1708685434023,-500.0,0.00028046,2]
[314931372,1708685434032,-500.0,0.00028046,2]
[314931373,1708685434041,-500.0,0.00028046,2]
[314931374,1708685434050,-500.0,0.00028046,2]
[314931375,1708685434059,-500.0,0.00028046,2]
[314931376,1708685434069,-500.0,0.00028046,2]
[314931377,1708685434078,-500.0,0.00028046,2]
[314931378,1708685434087,-911.05,0.00028046,2]
[314931379,1708685434096,-559.5060118,0.00028046,2]
[314931380,1708685434106,-500.0,0.00028046,2]
[314931381,1708685434115,-500.0,0.00028046,2]
[314931382,1708685434124,-1052.25,0.00028046,2]
[314931383,1708685434133,-725.27,0.00028046,2]
[314931384,1708685434142,-316.53716795,0.00028046,2]
[314931385,1708685434152,-500.0,0.00028046,2]
[314931386,1708685434162,-995.88,0.00028046,2]
[314931387,1708685434171,-714.53,0.00028046,2]
[314931388,1708685434181,-500.0,0.00028046,2]
[314931389,1708685434190,-521.41228105,0.00028046,2]
[314931390,1708685434199,-500.0,0.00028046,2]
[314931391,1708685434209,-799.04,0.00028046,2]
[314931392,1708685434219,-4257.41,0.00028046,2]
[314931393,1708685434228,-504.32625234,0.00028046,2]
[314931394,1708685434237,-497.98606135,0.00028046,2]